fUSD/lending_fUSD_20241224
["ID","MTS","AMOUNT","RATE_DAILY","PERIOD"]
[346515466,1735017115981,-728.94,0.00018082,2]
[346515467,1735017115991,-559.81,0.00018082,2]
[346515468,1735017116000,-177.41310097,0.00018082,2]
[346515469,1735017116010,-500.0,0.00018082,2]
[346515470,1735017116019,-556.14,0.00018082,2]
[346515471,1735017116029,-922.02,0.00018082,2]
[346515472,1735017116038,-660.38,0.00018082,2]
[346515473,1735017116048,-719.55,0.00018082,2]
[346515474,1735017116058,-500.0,0.00018082,2]
[346515475,1735017116067,-500.0,0.00018082,2]
[346515476,1735017116077,-847.72,0.00018082,2]
[346515477,1735017116087,-500.0,0.00018082,2]
[346515478,1735017116096,-803.4,0.00018082,2]
[346515479,1735017116106,-500.0,0.00018082,2]
[346515480,1735017116116,-500.0,0.00018082,2]
[346515481,1735017116125,-500.0,0.00018082,2]
[346515482,1735017116135,-639.75,0.00018082,2]
[346515483,1735017116144,-2089.39,0.00018082,2]
[346515484,1735017116153,-739.91,0.00018082,2]
[346515485,1735017116162,-500.0,0.00018082,2]
[346515486,1735017116171,-605.17,0.00018082,2]
[346515487,1735017116181,-815.06,0.00018082,2]
[346515488,1735017116191,-500.0,0.00018082,2]
[346515489,1735017116200,-699.59,0.00018082,2]
[346515490,1735017116209,-1038.23,0.00018082,2]
[346515491,1735017116219,-928.44,0.00018082,2]
[346515492,1735017116228,-500.0,0.00018082,2]
[346515493,1735017116237,-628.43,0.00018082,2]
[346515494,1735017116247,-1245.64,0.00018082,2]
[346515495,1735017116256,-516.41,0.00018082,2]
[346515496,1735017116266,-859.05,0.00018082,2]
[346515497,1735017116276,-500.0,0.00018082,2]
[346515498,1735017116286,-500.0,0.00018082,2]
[346515499,1735017116295,-589.52,0.00018082,2]
[346515500,1735017116305,-583.7,0.00018082,2]
[346515501,1735017116314,-524.33,0.00018082,2]
[346515502,1735017116323,-500.0,0.00018082,2]
[346515503,1735017116333,-500.0,0.00018082,2]
[346515504,1735017116343,-500.0,0.00018082,2]
[346515505,1735017116352,-958.18,0.00018082,2]
[346515506,1735017116361,-500.0,0.00018082,2]
[346515507,1735017116371,-500.0,0.00018082,2]
[346515508,1735017116380,-537.25,0.00018082,2]
[346515509,1735017116389,-1121.59,0.00018082,2]
[346515510,1735017116398,-500.0,0.00018082,2]
[346515511,1735017116407,-556.54,0.00018082,2]
[346515512,1735017116417,-387.77266865,0.00018082,2]
[346515513,1735017116427,-561.23,0.00018082,2]
[346515514,1735017116436,-915.52,0.00018082,2]
[346515515,1735017116446,-876.14,0.00018082,2]
[346515516,1735017116455,-500.0,0.00018082,2]
[346515517,1735017116465,-255.25,0.00018082,2]
[346515518,1735017116475,-1568.06,0.00018082,2]
[346515519,1735017116484,-790.82,0.00018082,2]
[346515520,1735017116493,-500.0,0.00018082,2]
[346515521,1735017116502,-824.42,0.00018082,2]
[346515522,1735017116512,-1098.82,0.00018082,2]
[346515523,1735017116524,-500.0,0.00018082,2]
[346515524,1735017116534,-745.24,0.00018082,2]
[346515525,1735017116543,-1414.48,0.00018082,2]
[346515526,1735017116553,-500.0,0.00018082,2]
[346515527,1735017116565,-1084.53,0.00018082,2]
[346515528,1735017116575,-666.79,0.00018082,2]
[346515529,1735017116585,-1900.45,0.00018082,2]
[346515530,1735017116594,-500.0,0.00018082,2]
[346515531,1735017116605,-1378.72,0.00018082,2]
[346515532,1735017116615,-767.26,0.00018082,2]
[346515533,1735017116625,-3033.38,0.00018082,2]
[346515534,1735017116636,-2055.63,0.00018082,2]
[346515535,1735017116649,-500.0,0.00018082,2]
[346515536,1735017116659,-500.0,0.00018082,2]
[346515537,1735017116669,-1125.23,0.00018082,2]
[346515538,1735017116679,-500.0,0.00018082,2]
[346515539,1735017116688,-500.0,0.00018082,2]
[346515540,1735017116698,-500.0,0.00018082,2]
[346515541,1735017116707,-612.69,0.00018082,2]
[346515542,1735017116716,-500.0,0.00018082,2]
[346515543,1735017116727,-384.42344425,0.00018082,2]
[346515544,1735017116737,-500.0,0.00018082,2]
[346515545,1735017116747,-500.0,0.00018082,2]
[346515546,1735017116757,-500.0,0.00018082,2]
[346515547,1735017116766,-516.38,0.00018082,2]
[346515548,1735017116779,-500.0,0.00018082,2]
[346515549,1735017116789,-500.0,0.00018082,2]
[346515550,1735017116799,-764.84,0.00018082,2]
[346515551,1735017116808,-500.0,0.00018082,2]
[346515552,1735017116818,-1499.77,0.00018082,2]
[346515553,1735017116827,-500.0,0.00018082,2]
[346515554,1735017116838,-1598.59,0.00018082,2]
[346515555,1735017116847,-1242.36,0.00018082,2]
[346515556,1735017116856,-500.0,0.00018082,2]
[346515557,1735017116866,-881.82,0.00018082,2]
[346515558,1735017116875,-559.25,0.00018082,2]
[346515559,1735017116885,-736.96,0.00018082,2]
[346515560,1735017116895,-632.45,0.00018082,2]
[346515561,1735017116904,-500.0,0.00018082,2]
[346515562,1735017116914,-584.48,0.00018082,2]
[346515563,1735017116923,-500.0,0.00018082,2]
[346515564,1735017116933,-734.02,0.00018082,2]
[346515565,1735017116943,-1243.83,0.00018082,2]
[346515566,1735017116953,-607.12,0.00018082,2]
[346515567,1735017116963,-698.02,0.00018082,2]
[346515568,1735017116972,-500.0,0.00018082,2]
[346515569,1735017116982,-1517.51,0.00018082,2]
[346515570,1735017116991,-2185.96,0.00018082,2]
[346515571,1735017117000,-500.0,0.00018082,2]
[346515572,1735017117010,-1895.65,0.00018082,2]
[346515573,1735017117020,-500.0,0.00018082,2]
[346515574,1735017117030,-524.51,0.00018082,2]
[346515575,1735017117039,-1341.35,0.00018082,2]
[346515576,1735017117049,-1146.95,0.00018082,2]
[346515577,1735017117059,-847.15,0.00018082,2]
[346515578,1735017117069,-804.88,0.00018082,2]
[346515579,1735017117079,-845.49,0.00018082,2]
[346515580,1735017117088,-728.57,0.00018082,2]
[346515581,1735017117098,-500.0,0.00018082,2]
[346515582,1735017117108,-512.15,0.00018082,2]
[346515583,1735017117118,-953.52,0.00018082,2]
[346515584,1735017117128,-500.0,0.00018082,2]
[346515585,1735017117137,-1722.6,0.00018082,2]
[346515586,1735017117147,-1169.18,0.00018082,2]
[346515587,1735017117157,-967.22,0.00018082,2]
[346515588,1735017117166,-970.63,0.00018082,2]
[346515589,1735017117176,-682.34,0.00018082,2]
[346515590,1735017117186,-1186.53,0.00018082,2]
[346515591,1735017117195,-516.04,0.00018082,2]
[346515592,1735017117204,-2751.61,0.00018082,2]
[346515593,1735017117213,-8307.43,0.00018082,2]
[346515594,1735017117223,-951.65,0.00018082,2]
[346515595,1735017117232,-1312.48,0.00018082,2]
[346515596,1735017117241,-838.55,0.00018082,2]
[346515597,1735017117251,-500.0,0.00018082,2]
[346515598,1735017117260,-895.42,0.00018082,2]
[346515599,1735017117270,-693.38,0.00018082,2]
[346515600,1735017117279,-2714.59,0.00018082,2]
[346515601,1735017117289,-1034.79,0.00018082,2]
[346515602,1735017117299,-530.08,0.00018082,2]
[346515603,1735017117308,-970.92,0.00018082,2]
[346515604,1735017117318,-1494.15,0.00018082,2]
[346515605,1735017117328,-2028.23,0.00018082,2]
[346515606,1735017117337,-8065.04,0.00018082,2]
[346515607,1735017117346,-14022.51,0.00018082,2]
[346515608,1735017117357,-1858.88,0.00018082,2]
[346515609,1735017117366,-638.49,0.00018082,2]
[346515610,1735017117375,-417.753861,0.00018082,2]
[346515611,1735017117385,-1961.86,0.00018082,2]
[346515612,1735017117395,-470.967598,0.00018082,2]
[346515613,1735017117404,-1516.28,0.00018082,2]
[346515614,1735017117413,-2763.5,0.00018082,2]
[346515615,1735017117423,-991.86,0.00018082,2]
[346515616,1735017117433,-1589.93,0.00018082,2]
[346515617,1735017117442,-595.96,0.00018082,2]
[346515618,1735017117451,-2026.52,0.00018082,2]
[346515619,1735017117461,-841.8,0.00018082,2]
[346515620,1735017117471,-1673.95,0.00018082,2]
[346515621,1735017117480,-704.95,0.00018082,2]
[346515622,1735017117489,-881.88,0.00018082,2]
[346515623,1735017117498,-947.94,0.00018082,2]
[346515624,1735017117508,-1132.27,0.00018082,2]
[346515625,1735017117517,-1217.14,0.00018082,2]
[346515626,1735017117527,-527.89,0.00018082,2]
[346515627,1735017117541,-1554.58,0.00018082,2]
[346515628,1735017117551,-1554.93,0.00018082,2]
[346515629,1735017117562,-783.81,0.00018082,2]
[346515630,1735017117572,-8937.01,0.00018082,2]
[346515631,1735017117581,-1595.12,0.00018082,2]
[346515632,1735017117591,-1043.93,0.00018082,2]
[346515633,1735017117600,-820.47,0.00018082,2]
[346515634,1735017117609,-570.88,0.00018082,2]
[346515635,1735017117619,-3160.1,0.00018082,2]
[346515636,1735017117629,-2812.48,0.00018082,2]
[346515637,1735017117639,-1278.73,0.00018082,2]
[346515638,1735017117650,-2713.57,0.00018082,2]
[346515639,1735017117659,-708.16,0.00018082,2]
[346515640,1735017117669,-2055.84,0.00018082,2]
[346515641,1735017117679,-1461.32,0.00018082,2]
[346515642,1735017117688,-1831.86,0.00018082,2]
[346515643,1735017117698,-5286.14,0.00018082,2]
[346515644,1735017117708,-2687.24,0.00018082,2]
[346515645,1735017117718,-929.6,0.00018082,2]
[346515646,1735017117728,-1334.92,0.00018082,2]
[346515647,1735017117738,-599.85,0.00018082,2]
[346515648,1735017117747,-6644.58,0.00018082,2]
[346515649,1735017117757,-2084.05,0.00018082,2]
[346515650,1735017117767,-1574.04,0.00018082,2]
[346515651,1735017117777,-521.4,0.00018082,2]
[346515652,1735017117787,-1759.16,0.00018082,2]
[346515653,1735017117797,-5396.91,0.00018082,2]
[346515654,1735017117807,-5068.92,0.00018082,2]
[346515655,1735017117817,-2140.51,0.00018082,2]
[346515656,1735017117827,-1094.07,0.00018082,2]
[346515657,1735017117836,-1218.27,0.00018082,2]
[346515658,1735017117846,-10243.1,0.00018082,2]
[346515659,1735017117856,-721.28,0.00018082,2]
[346515660,1735017117866,-5625.96,0.00018082,2]
[346515661,1735017117876,-1216.52,0.00018082,2]
[346515662,1735017117886,-790.49,0.00018082,2]
[346515663,1735017117896,-277.2691109,0.00018082,2]
[346515664,1735017117906,-500.0,0.00018082,2]
[346515665,1735017117915,-653.69,0.00018082,2]
[346515666,1735017117925,-506.69,0.00018082,2]
[346515667,1735017117935,-500.0,0.00018082,2]
[346515668,1735017117945,-500.0,0.00018082,2]
[346515669,1735017117955,-1025.3,0.00018082,2]
[346515670,1735017117964,-2281.06,0.00018082,2]
[346515671,1735017117975,-500.0,0.00018082,2]
[346515672,1735017117985,-3534.91,0.00018082,2]
[346515673,1735017117994,-1884.7,0.00018082,2]
[346515674,1735017118004,-1009.93,0.00018082,2]
[346515675,1735017118015,-747.18,0.00018082,2]
[346515676,1735017118025,-1487.41,0.00018082,2]
[346515677,1735017118230,-1157.43,0.00018082,2]
[346515678,1735017118240,-1148.68,0.00018082,2]
[346515679,1735017118250,-574.67,0.00018082,2]
[346515680,1735017118259,-520.9,0.00018082,2]
[346515681,1735017118268,-1366.93,0.00018082,2]
[346515682,1735017118278,-1321.6,0.00018082,2]
[346515683,1735017118287,-500.0,0.00018082,2]
[346515684,1735017118297,-3473.97,0.00018082,2]
[346515685,1735017118306,-2009.91,0.00018082,2]
[346515686,1735017118315,-1834.74,0.00018082,2]
[346515687,1735017118325,-12237.72,0.00018082,2]
[346515688,1735017118334,-1429.03,0.00018082,2]
[346515689,1735017118343,-330201.31786487,0.00018124,2]
[346515690,1735017118353,-222.122414,0.00018148,2]
[346515691,1735017118362,-222.122414,0.00018148,3]
[346515692,1735017118371,-222.122414,0.00018148,6]
[346515693,1735017118381,-222.122414,0.00018148,7]
[346515694,1735017118390,-222.122414,0.00018148,8]
[346515695,1735017118400,-222.122414,0.00018148,9]
[346515696,1735017118409,-222.122414,0.00018148,10]
[346515697,1735017118418,-151.00631118,0.00018192,2]
[346515698,1735017118427,-406.0,0.000182,2]
[346515699,1735017118436,-169.01,0.00018203,2]
[346515700,1735017118446,-150.0,0.00018243,2]
[346515701,1735017118455,-2051.10994473,0.00018287,2]
[346515702,1735017118465,-339.56969777,0.00018287,2]
[346515703,1735017118474,-8454.68618104,0.00018287,2]
[346515704,1735017118483,-202.2,0.000183,2]
[346515705,1735017118492,-5800.0,0.000183,2]
[346515706,1735017118501,-8500.0,0.000183,2]
[346515707,1735017118511,-202.6,0.000183,2]
[346515708,1735017118520,-150.0,0.00018318,2]
[346515709,1735017118529,-151.0,0.00018328,2]
[346515710,1735017118539,-222.122414,0.00018348,2]
[346515711,1735017118548,-222.122414,0.00018348,3]
[346515712,1735017118558,-222.122414,0.00018348,6]
[346515713,1735017118570,-222.122414,0.00018348,7]
[346515714,1735017118579,-222.122414,0.00018348,8]
[346515715,1735017118588,-222.122414,0.00018348,9]
[346515716,1735017118597,-222.122414,0.00018348,10]
[346515717,1735017118610,-557.785434,0.00018356,2]
[346515718,1735017118619,-664.615719,0.00018356,2]
[346515719,1735017118629,-150.0,0.00018356,2]
[346515720,1735017118640,-500.0,0.00018356,2]
[346515721,1735017118650,-656.66,0.00018356,2]
[346515722,1735017118659,-547.42,0.00018356,2]
[346515723,1735017118668,-500.0,0.00018356,2]
[346515724,1735017118677,-728.94,0.00018356,2]
[346515725,1735017118687,-559.81,0.00018356,2]
[346515726,1735017118696,-537.62,0.00018356,2]
[346515727,1735017118705,-556.14,0.00018356,2]
[346515728,1735017118714,-922.02,0.00018356,2]
[346515729,1735017118723,-660.38,0.00018356,2]
[346515730,1735017118732,-719.55,0.00018356,2]
[346515731,1735017118741,-500.0,0.00018356,2]
[346515732,1735017118751,-500.0,0.00018356,2]
[346515733,1735017118760,-847.72,0.00018356,2]
[346515734,1735017118770,-500.0,0.00018356,2]
[346515735,1735017118779,-803.4,0.00018356,2]
[346515736,1735017118789,-165.7679344,0.00018356,2]
[346515737,1735017118799,-500.0,0.00018356,2]
[346515738,1735017118808,-500.0,0.00018356,2]
[346515739,1735017118818,-639.75,0.00018356,2]
[346515740,1735017118827,-2089.39,0.00018356,2]
[346515741,1735017118836,-739.91,0.00018356,2]
[346515742,1735017118845,-500.0,0.00018356,2]
[346515743,1735017118854,-605.17,0.00018356,2]
[346515744,1735017118864,-815.06,0.00018356,2]
[346515745,1735017118873,-500.0,0.00018356,2]
[346515746,1735017118882,-699.59,0.00018356,2]
[346515747,1735017118891,-1038.23,0.00018356,2]
[346515748,1735017118901,-928.44,0.00018356,2]
[346515749,1735017118910,-628.43,0.00018356,2]
[346515750,1735017118919,-1245.64,0.00018356,2]
[346515751,1735017118928,-516.41,0.00018356,2]
[346515752,1735017118938,-859.05,0.00018356,2]
[346515753,1735017118947,-500.0,0.00018356,2]
[346515754,1735017118957,-500.0,0.00018356,2]
[346515755,1735017118966,-589.52,0.00018356,2]
[346515756,1735017118976,-524.33,0.00018356,2]
[346515757,1735017118985,-500.0,0.00018356,2]
[346515758,1735017118995,-500.0,0.00018356,2]
[346515759,1735017119004,-500.0,0.00018356,2]
[346515760,1735017119014,-958.18,0.00018356,2]
[346515761,1735017119024,-500.0,0.00018356,2]
[346515762,1735017119034,-500.0,0.00018356,2]
[346515763,1735017119043,-537.25,0.00018356,2]
[346515764,1735017119052,-1121.59,0.00018356,2]
[346515765,1735017119062,-500.0,0.00018356,2]
[346515766,1735017119071,-556.54,0.00018356,2]
[346515767,1735017119081,-561.23,0.00018356,2]
[346515768,1735017119090,-915.52,0.00018356,2]
[346515769,1735017119099,-876.14,0.00018356,2]
[346515770,1735017119108,-500.0,0.00018356,2]
[346515771,1735017119117,-1568.06,0.00018356,2]
[346515772,1735017119127,-790.82,0.00018356,2]
[346515773,1735017119136,-345.0781359,0.00018356,2]
[346515774,1735017119145,-824.42,0.00018356,2]
[346515775,1735017119155,-1098.82,0.00018356,2]
[346515776,1735017119164,-500.0,0.00018356,2]
[346515777,1735017119173,-745.24,0.00018356,2]
[346515778,1735017119182,-1414.48,0.00018356,2]
[346515779,1735017119191,-500.0,0.00018356,2]
[346515780,1735017119200,-1084.53,0.00018356,2]
[346515781,1735017119209,-666.79,0.00018356,2]
[346515782,1735017119219,-1900.45,0.00018356,2]
[346515783,1735017119228,-500.0,0.00018356,2]
[346515784,1735017119238,-1378.72,0.00018356,2]
[346515785,1735017119247,-767.26,0.00018356,2]
[346515786,1735017119256,-3033.38,0.00018356,2]
[346515787,1735017119266,-2055.63,0.00018356,2]
[346515788,1735017119275,-500.0,0.00018356,2]
[346515789,1735017119284,-500.0,0.00018356,2]
[346515790,1735017119293,-1125.23,0.00018356,2]
[346515791,1735017119302,-267.1,0.00018356,2]
[346515792,1735017119311,-500.0,0.00018356,2]
[346515793,1735017119320,-500.0,0.00018356,2]
[346515794,1735017119329,-612.69,0.00018356,2]
[346515795,1735017119338,-500.0,0.00018356,2]
[346515796,1735017119347,-497.89678492,0.00018356,2]
[346515797,1735017119356,-500.0,0.00018356,2]
[346515798,1735017119365,-537.73790565,0.00018356,2]
[346515799,1735017119374,-516.38,0.00018356,2]
[346515800,1735017119383,-500.0,0.00018356,2]
[346515801,1735017119392,-500.0,0.00018356,2]
[346515802,1735017119401,-764.84,0.00018356,2]
[346515803,1735017119410,-500.0,0.00018356,2]
[346515804,1735017119419,-1499.77,0.00018356,2]
[346515805,1735017119429,-500.0,0.00018356,2]
[346515806,1735017119438,-1598.59,0.00018356,2]
[346515807,1735017119447,-1242.36,0.00018356,2]
[346515808,1735017119456,-881.82,0.00018356,2]
[346515809,1735017119465,-500.0,0.00018356,2]
[346515810,1735017119474,-559.25,0.00018356,2]
[346515811,1735017119484,-736.96,0.00018356,2]
[346515812,1735017119493,-632.45,0.00018356,2]
[346515813,1735017119502,-500.0,0.00018356,2]
[346515814,1735017119512,-584.48,0.00018356,2]
[346515815,1735017119523,-500.0,0.00018356,2]
[346515816,1735017119532,-734.02,0.00018356,2]
[346515817,1735017119545,-1243.83,0.00018356,2]
[346515818,1735017119554,-607.12,0.00018356,2]
[346515819,1735017119566,-698.02,0.00018356,2]
[346515820,1735017119575,-500.0,0.00018356,2]
[346515821,1735017119585,-1517.51,0.00018356,2]
[346515822,1735017119594,-2185.96,0.00018356,2]
[346515823,1735017119603,-500.0,0.00018356,2]
[346515824,1735017119612,-1895.65,0.00018356,2]
[346515825,1735017119621,-500.0,0.00018356,2]
[346515826,1735017119631,-524.51,0.00018356,2]
[346515827,1735017119640,-1341.35,0.00018356,2]
[346515828,1735017119649,-1146.95,0.00018356,2]
[346515829,1735017119659,-847.15,0.00018356,2]
[346515830,1735017119668,-804.88,0.00018356,2]
[346515831,1735017119677,-845.49,0.00018356,2]
[346515832,1735017119687,-728.57,0.00018356,2]
[346515833,1735017119697,-500.0,0.00018356,2]
[346515834,1735017119706,-512.15,0.00018356,2]
[346515835,1735017119715,-953.52,0.00018356,2]
[346515836,1735017119724,-500.0,0.00018356,2]
[346515837,1735017119733,-1722.6,0.00018356,2]
[346515838,1735017119743,-1169.18,0.00018356,2]
[346515839,1735017119752,-967.22,0.00018356,2]
[346515840,1735017119762,-970.63,0.00018356,2]
[346515841,1735017119771,-682.34,0.00018356,2]
[346515842,1735017119781,-1186.53,0.00018356,2]
[346515843,1735017119790,-516.04,0.00018356,2]
[346515844,1735017119799,-2751.61,0.00018356,2]
[346515845,1735017119808,-8307.43,0.00018356,2]
[346515846,1735017119818,-951.65,0.00018356,2]
[346515847,1735017119826,-838.55,0.00018356,2]
[346515848,1735017119836,-1312.48,0.00018356,2]
[346515849,1735017119846,-500.0,0.00018356,2]
[346515850,1735017119856,-895.42,0.00018356,2]
[346515851,1735017119865,-693.38,0.00018356,2]
[346515852,1735017119874,-2714.59,0.00018356,2]
[346515853,1735017119884,-1034.79,0.00018356,2]
[346515854,1735017119893,-530.08,0.00018356,2]
[346515855,1735017119903,-970.92,0.00018356,2]
[346515856,1735017119912,-1494.15,0.00018356,2]
[346515857,1735017119921,-2028.23,0.00018356,2]
[346515858,1735017119931,-8065.04,0.00018356,2]
[346515859,1735017119940,-14022.51,0.00018356,2]
[346515860,1735017119949,-1858.88,0.00018356,2]
[346515861,1735017119958,-638.49,0.00018356,2]
[346515862,1735017119967,-417.753861,0.00018356,2]
[346515863,1735017119976,-1961.86,0.00018356,2]
[346515864,1735017119985,-470.967598,0.00018356,2]
[346515865,1735017119995,-1516.28,0.00018356,2]
[346515866,1735017120004,-2763.5,0.00018356,2]
[346515867,1735017120014,-991.86,0.00018356,2]
[346515868,1735017120024,-1589.93,0.00018356,2]
[346515869,1735017120034,-595.96,0.00018356,2]
[346515870,1735017120043,-2026.52,0.00018356,2]
[346515871,1735017120053,-841.8,0.00018356,2]
[346515872,1735017120063,-1673.95,0.00018356,2]
[346515873,1735017120072,-704.95,0.00018356,2]
[346515874,1735017120081,-881.88,0.00018356,2]
[346515875,1735017120091,-947.94,0.00018356,2]
[346515876,1735017120100,-1132.27,0.00018356,2]
[346515877,1735017120109,-1217.14,0.00018356,2]
[346515878,1735017120118,-527.89,0.00018356,2]
[346515879,1735017120128,-1554.58,0.00018356,2]
[346515880,1735017120138,-1554.93,0.00018356,2]
[346515881,1735017120147,-783.81,0.00018356,2]
[346515882,1735017120157,-8937.01,0.00018356,2]
[346515883,1735017120166,-1595.12,0.00018356,2]
[346515884,1735017120176,-1043.93,0.00018356,2]
[346515885,1735017120185,-820.47,0.00018356,2]
[346515886,1735017120194,-570.88,0.00018356,2]
[346515887,1735017120204,-3160.1,0.00018356,2]
[346515888,1735017120214,-2812.48,0.00018356,2]
[346515889,1735017120223,-1278.73,0.00018356,2]
[346515890,1735017120234,-2713.57,0.00018356,2]
[346515891,1735017120243,-708.16,0.00018356,2]
[346515892,1735017120252,-2055.84,0.00018356,2]
[346515893,1735017120262,-1461.32,0.00018356,2]
[346515894,1735017120272,-1831.86,0.00018356,2]
[346515895,1735017120281,-5286.14,0.00018356,2]
[346515896,1735017120291,-2687.24,0.00018356,2]
[346515897,1735017120301,-929.6,0.00018356,2]
[346515898,1735017120311,-1334.92,0.00018356,2]
[346515899,1735017120321,-599.85,0.00018356,2]
[346515900,1735017120331,-6644.58,0.00018356,2]
[346515901,1735017120340,-2084.05,0.00018356,2]
[346515902,1735017120350,-1574.04,0.00018356,2]
[346515903,1735017120359,-521.4,0.00018356,2]
[346515904,1735017120369,-1759.16,0.00018356,2]
[346515905,1735017120380,-5396.91,0.00018356,2]
[346515906,1735017120389,-5068.92,0.00018356,2]
[346515907,1735017120399,-2140.51,0.00018356,2]
[346515908,1735017120408,-1094.07,0.00018356,2]
[346515909,1735017120418,-1218.27,0.00018356,2]
[346515910,1735017120427,-10243.1,0.00018356,2]
[346515911,1735017120437,-721.28,0.00018356,2]
[346515912,1735017120446,-5625.96,0.00018356,2]
[346515913,1735017120526,-1216.52,0.00018356,2]
[346515914,1735017120536,-790.49,0.00018356,2]
[346515915,1735017120545,-436.80526568,0.00018356,2]
[346515916,1735017120554,-653.69,0.00018356,2]
[346515917,1735017120567,-506.69,0.00018356,2]
[346515918,1735017120576,-413.2761058,0.00018356,2]
[346515919,1735017120585,-428.49822086,0.00018356,2]
[346515920,1735017120594,-1025.3,0.00018356,2]
[346515921,1735017120605,-2281.06,0.00018356,2]
[346515922,1735017120614,-500.0,0.00018356,2]
[346515923,1735017120623,-3534.91,0.00018356,2]
[346515924,1735017120633,-150.0,0.00018356,2]
[346515925,1735017120642,-1884.7,0.00018356,2]
[346515926,1735017120652,-1009.93,0.00018356,2]
[346515927,1735017120661,-747.18,0.00018356,2]
[346515928,1735017120671,-1487.41,0.00018356,2]
[346515929,1735017120680,-1157.43,0.00018356,2]
[346515930,1735017120689,-1126.0,0.00018356,2]
[346515931,1735017120698,-1148.68,0.00018356,2]
[346515932,1735017120708,-574.67,0.00018356,2]
[346515933,1735017120717,-1075.0,0.00018356,2]
[346515934,1735017120726,-520.9,0.00018356,2]
[346515935,1735017120736,-1366.93,0.00018356,2]
[346515936,1735017120745,-500.0,0.00018356,2]
[346515937,1735017120755,-1321.6,0.00018356,2]
[346515938,1735017120764,-3473.97,0.00018356,2]
[346515939,1735017120773,-2009.91,0.00018356,2]
[346515940,1735017120783,-1834.74,0.00018356,2]
[346515941,1735017120792,-12237.72,0.00018356,2]
[346515942,1735017120801,-1429.03,0.00018356,2]
[346515943,1735017120811,-404.55294469,0.0001837,2]
[346515944,1735017120820,-1491.5722909,0.00018386,2]
[346515945,1735017120830,-800.2905609,0.00018386,2]
[346515946,1735017120841,-8703.51476,0.00018387,2]
[346515947,1735017120851,-500.0,0.00018387,2]
[346515948,1735017120860,-1495.7781342,0.00018387,2]
[346515949,1735017120870,-802.5471707,0.00018387,2]
[346515950,1735017120879,-552912.35499151,0.00018399,2]
[346515951,1735017121257,-4615928.04899559,0.00018399,2]
[346515955,1735017454179,424.32,0.00011274,2]
[346515958,1735017936613,158.18,0.00010137,2]
[346515983,1735018232116,-177.47858505,0.000129,2]
[346515984,1735018232126,-300.0,0.00012999,2]
[346515985,1735018232135,-450.0,0.00013,2]
[346515986,1735018232144,-202.42,0.00013,2]
[346515987,1735018232153,-203.44,0.00013,2]
[346515988,1735018232162,-200.06,0.00013,2]
[346515989,1735018232173,-201.65,0.00013,2]
[346515990,1735018232183,-200.47,0.00013,2]
[346515991,1735018232192,-203.46,0.00013,2]
[346515992,1735018232202,-201.35,0.00013,2]
[346515993,1735018232211,-202.93,0.00013,2]
[346515994,1735018232220,-201.98,0.00013,2]